Cogmind - Beta 17 @@@ ROGUE MODE // 2026.07.27 @ 14:40:02 Player: 50l Result: Destroyed by G-47 Trooper with Particle Gun Performance ------------- Evolutions (0) 0 Regions Visited (1) 200 Robots Destroyed (7) 35 Value Destroyed (166) 166 Prototype IDs (0) 0 Alien Tech Used (0) 0 Bonus (0) 0 TOTAL SCORE: 401 Bonus ------- None Cogmind --------- Core Integrity 0/250 Matter 283/300 Energy 100/100 System Corruption 1% Temperature Cool (25) Movement Rolling (100) Location -10/Materials Parts ------- > --- POWER (1) -------- (None) > --- PROPULSION (2) --- Compact Wheel Flight Unit > --- UTILITY (2) ------ Small Storage Unit Utility Shielding > --- WEAPON (2) ------- Small Laser Light Assault Rifle > --- INVENTORY (8) ---- Light Ion Engine Medium Storage Unit Structural Scanner Signal Interpreter Seismic Detector Targeting Computer Mining Laser Peak State ------------ > --- POWER ------------ Ion Engine > --- PROPULSION ------- Aluminum Leg Aluminum Leg > --- UTILITY ---------- Medium Storage Unit Seismic Detector > --- WEAPON ----------- Small Laser Small Laser > --- INVENTORY -------- Light Ion Engine Compact Wheel Flight Unit Flight Unit Flight Unit Small Storage Unit Structural Scanner Targeting Computer Utility Shielding Light Assault Rifle [Rating: 8] Favorites ----------- Power Ion Engine Engine Ion Engine Propulsion Aluminum Leg Leg Aluminum Leg Wheel Compact Wheel Flight Unit Flight Unit Utility Small Storage Unit Device Seismic Detector Storage Small Storage Unit Protection Utility Shielding Weapon Small Laser Energy Gun Small Laser Ballistic Gun Light Assault Rifle Build | -11 -10 ------- Run | Yrd Mat Slots Evolved . | . . Power . | . . Propulsion . | . . Utility . | . . Weapon . | . . Parts Attached 17 | 6 11 Power 1 | 1 . Engine 1 | 1 . Core . | . . Reactor . | . . Propulsion 7 | 2 5 Treads . | . . Leg 2 | 2 . Wheel 1 | . 1 Hover . | . . Flight 4 | . 4 Utility 5 | 1 4 Device 2 | . 2 Storage 2 | 1 1 Processor . | . . Hackware . | . . Protection 1 | . 1 Artifact . | . . Weapon 4 | 2 2 Energy Gun 2 | 2 . Energy Cannon . | . . Ballistic Gun 2 | . 2 Ballistic Cannon . | . . Launcher . | . . Special Weapon . | . . Impact Weapon . | . . Slashing Weapon . | . . Piercing Weapon . | . . Special Melee Weapon . | . . Unidentified Prototypes . | . . Parts Lost 6 | . 6 Power 1 | . 1 Propulsion 3 | . 3 Utility . | . . Weapon 2 | . 2 Highest Loss Streak 5 | . 5 To Critical Strikes . | . . Average Backups 5 | 1 6 Power . | . 1 Propulsion 1 | . 1 Utility 2 | . 3 Weapon . | . . Tool/Special . | . . Unused Backups 4 | . 4 Power 1 | . 1 Propulsion . | . . Utility 2 | . 2 Weapon 1 | . 1 Tool/Special . | . . Average Slot Usage (%) 87 | . 87 Engine 8 | . 8 Leg 15 | . 15 Flight 10 | . 10 Device 7 | . 7 Storage 14 | . 14 Protection 4 | . 4 Energy Gun 20 | . 20 Ballistic Gun 4 | . 4 Peak Build Rating 8 | 6 8 Average Rating 6 | 4 6 On Entrance 3 | . 6 Avg Prop Armor Cover (%) . | . . Naked Turns . | . . Heaviest Build 18 | 12 18 Greatest Support 20 | 20 20 Greatest Overweight (x) 1 | . 1 Average Overweight (x) . | . . Largest Inventory Capacity 10 | 8 10 Average Capacity 8 | 7 8 Most Carried 10 | 3 10 Average Carried 6 | 1 6 Final Capacity 8 | 8 8 Final Carried 7 | 3 7 Class Distribution -------------------- 100% | Mutant Dominant Class ---------------- Mutant | -10/Materials Resources | -11 -10 ----------- Run | Yrd Mat Matter Collected 397 | 225 172 Remotely . | . . Salvage Created 179 | . 179 Parts 11 | . 11 Haulers Intercepted . | . . Recyclers Shooed . | . . Parts Field Recycled . | . . Retrieved Matter . | . . Parts Self-Destructed . | . . Prevented . | . . Parts Restored . | . . Kills | -11 -10 ------- Run | Yrd Mat Combat Hostiles Destroyed 7 | . 7 Guns 7 | . 7 Classes Destroyed 2 | . 2 Swarmer 3 | . 3 Grunt 4 | . 4 Best Kill Streak 5 | . 5 Combat Bots Only 5 | . 5 Max Kills in Single Turn 1 | . 1 Gunslinging . | . . Exploded . | . . Melee . | . . Uniques/NPCs Destroyed . | . . Combat | -11 -10 -------- Run | Yrd Mat Hostile Shots Fired 106 | . 106 Missed 31 | . 31 Hits 75 | . 75 Projectile 75 | . 75 Damage Taken 776 | . 776 Core 263 | . 263 Absorbed by Shields . | . . Redirected to Shielding 17 | . 17 Core Remaining (%) 100 | 100 . Volleys Fired 24 | . 24 Largest 2 | . 2 Hottest 60 | . 60 Shots Fired 47 | . 47 Gun 47 | . 47 Cannon . | . . Launcher . | . . Special . | . . Kinetic 24 | . 24 Thermal 23 | . 23 Explosive . | . . Electromagnetic . | . . Robot Hit Streak 19 | . 19 Robot Miss Streak 3 | . 3 Penetration Max . | . . Secondary Targets 1 | . 1 Max Gunslinging Chain 1 | . 1 Shots Hit Robots 37 | . 37 Core Hits 16 | . 16 Critical Kills . | . . Critical Parts Destroyed . | . . Critical Strikes . | . . Melee Attacks . | . . Impact . | . . Slashing . | . . Piercing . | . . Sneak Attacks . | . . Combat Hostiles . | . . Follow-up Attacks . | . . Damage Inflicted 412 | . 412 Guns 412 | . 412 Cannons . | . . Explosions . | . . Melee . | . . Ramming . | . . Kinetic 167 | . 167 Thermal 245 | . 245 Explosive . | . . Electromagnetic . | . . Impact . | . . Slashing . | . . Piercing . | . . Highest Corruption 1 | . 1 Average Corruption 1 | . 1 Corruption Purged . | . . Corruption Blocked . | . . Effects 1 | . 1 Energy Discharges 1 | . 1 Overload Shots . | . . Overflow Damage . | . . Projectiles . | . . Explosions . | . . Melee . | . . Knockbacks . | . . Impact . | . . Kinetic . | . . Secondary . | . . Self-Inflicted Damage . | . . Shots . | . . Rammed . | . . Targets Rammed . | . . Kicked . | . . Crushed . | . . Highest Temperature 177 | . 177 Average Temperature 52 | . 52 Received Heat Transfer 252 | . 252 Siege Activations . | . . Martial Activations . | . . Shielding Activations . | . . Robots Disrupted . | . . Combat Hostiles . | . . Robots Corrupted . | . . Combat Hostiles . | . . Parts Fried . | . . Impact Corruptions . | . . Robots Melted . | . . Combat Hostiles . | . . Parts Melted 1 | . 1 Heat Transferred 525 | . 525 Parts Sabotaged . | . . Parts Stolen . | . . Parts Stripped . | . . Power Chain Reactions . | . . Alert | -11 -10 ------- Run | Yrd Mat Maximum Alert Level . | . . Low Security (%) 100 | 100 100 Level 1 . | . . Level 2 . | . . Level 3 . | . . Level 4 . | . . Level 5 . | . . High Security . | . . Max Security . | . . Peak Influence 141 | . 141 Initial . | . . Average 35 | . 40 Influence Increases 290 | . 290 Destroy 0b10 Robot/C 140 | . 140 Destroy Leader 30 | . 30 Successful Hack 15 | . 15 Lose Combat Pursuer 105 | . 105 Influence Decreases 157 | . 157 Time Decay 97 | . 97 Lost Part 60 | . 60 Squads Dispatched 3 | . 3 Investigation 1 | . 1 Extermination . | . . Reinforcement 2 | . 2 Assault . | . . Garrison . | . . Intercept . | . . Searches Triggered . | . . Construction Impeded . | . . Haulers Reinforced . | . . Active Scanning Responses . | . . Cargo Convoy Interrupts . | . . Stealth | -11 -10 --------- Run | Yrd Mat Distress Signals 1 | . 1 Communications Jammed . | . . Distress Signals . | . . Times Spotted 23 | . 23 Peak Tracking Total 10 | . 10 Tactical Retreats 2 | . 2 Traps | -11 -10 ------- Run | Yrd Mat Traps Triggered 3 | . 3 Indirectly . | . . Trap Hack Attempts . | . . Triggered . | . . Disarmed . | . . Reprogrammed . | . . Reused . | . . Traps Extracted . | . . Installed . | . . Triggered . | . . Machines | -11 -10 ---------- Run | Yrd Mat Machines Disabled . | . . Max in Single Turn . | . . Machines Repaired . | . . Machines Dismantled . | . . Machines Sabotaged . | . . Overloaded Fab Kills . | . . Hacking | -11 -10 --------- Run | Yrd Mat Machines Accessed 5 | . 5 Terminals 5 | . 5 Fabricators . | . . Repair Stations . | . . Recycling Units . | . . Scanalyzers . | . . Garrison Access . | . . Total Hacks 21 | . 21 Successful 13 | . 13 Failed 8 | . 8 Catastrophic . | . . Database Lockouts . | . . Manual 21 | . 21 Terminals 21 | . 21 Fabricators . | . . Repair Stations . | . . Recycling Units . | . . Scanalyzers . | . . Garrison Access . | . . Terminal Hacks 2 | . 2 Robot Analysis 1 | . 1 Terminal Index 1 | . 1 Fabricator Hacks . | . . Repair Station Hacks . | . . Recycling Unit Hacks . | . . Scanalyzer . | . . Garrison Access Hacks . | . . Unauthorized Hacks 10 | . 10 Terminals 10 | . 10 Botnet 5 | . 5 Skim 5 | . 5 Fabricators . | . . Repair Stations . | . . Recycling Units . | . . Scanalyzers . | . . Garrison Access . | . . Data Cores Recovered . | . . Used . | . . Hacking Detections 5 | . 5 Full Trace Events . | . . Feedback Events . | . . Feedback Blocked . | . . Robot Schematics Acquired . | . . Robots Built . | . . Authchips . | . . Time . | . . Total Robot Build Rating . | . . Part Schematics Acquired . | . . Parts Built . | . . Authchips . | . . Time . | . . Total Part Build Rating . | . . Part Studies Acquired . | . . Parts Repaired . | . . Time . | . . Parts Recycled . | . . Recycled Matter . | . . Retrieved Matter . | . . Retrieved Components . | . . Parts Scanalyzed . | . . Part Schematics Acquired . | . . Parts Damaged . | . . Bothacking | -11 -10 ------------ Run | Yrd Mat Used RIF Installer . | . . Robots Hacked . | . . Non-combat . | . . Combat . | . . Robot Hacks Applied . | . . Relay Couplers Released . | . . Fabnet Peak Effective % . | . . Robots Rewired . | . . Allies Hacked . | . . Hacks Repelled . | . . Allies | -11 -10 -------- Run | Yrd Mat Total Allies . | . . Largest Group . | . . Highest-Rated Group . | . . Highest-Rated Ally . | . . Total Orders . | . . Ally Attacks . | . . Total Damage . | . . Kills . | . . Allies Corrupted . | . . Allies Melted . | . . Intel | -11 -10 ------- Run | Yrd Mat Active Infowar (turns) 238 | . 238 Structural 31 | . 31 Seismic 207 | . 207 Robot Analysis Total 1 | . 1 Derelict Logs Recovered . | . . Drone Launches . | . . Drone Recoveries . | . . Exploration | -11 -10 ------------- Run | Yrd Mat Turns Passed 537 | 66 471 Spaces Moved 567 | 49 518 Core 6 | 6 . Treads . | . . Legs 235 | 43 192 Wheels 6 | . 6 Hover . | . . Flight 320 | . 320 Fastest Speed 37 | 50 37 Average Speed 72 | 111 69 Slowest Speed 120 | 120 120 Overloaded Moves . | . . Propulsion Burnouts . | . . Robots Hopped 8 | . 8 Potential Cave-ins . | . . Cave-ins Triggered . | . . Exploration Rate (%) 44 | 3 86 Regions Visited 1 Branch Regions . Pre-discovered Areas . | . . Known Exits Taken . | . . Unknown Exits Taken 1 | 1 . Scrap Searched . | . . Spaces Dug . | . . Terrain Destroyed . | . . Melee . | . . Projectile . | . . AOE . | . . Terrain Rammed . | . . Walls Destroyed . | . . Machines Disabled . | . . Actions | -11 -10 --------- Run | Yrd Mat Total 637 | 57 580 Wait 12 | . 12 Move 550 | 48 502 Hop 8 | . 8 Pick Up 11 | 3 8 Fast Attach 13 | 6 7 Attach 6 | . 6 Detach 4 | . 4 Swap 3 | . 3 Drop 6 | . 6 Fire 24 | . 24 Melee . | . . Ram . | . . Kick . | . . Crush . | . . Escape Stasis . | . . Rewire . | . . Trap . | . . Miscellaneous . | . . Route ------- -11/Scrapyard -10/Materials (discovered 3 exits: [*Mat] / [*Min x2]) History --------- Turn | Location | Event 3 | -11/Scrapyard | Discovered new exit (range 15) 67 | -11/Scrapyard | Entered Materials 143 | -10/Materials | Discovered new exit (range 12) 318 | -10/Materials | Build established: Mutant 337 | -10/Materials | Discovered new exit (range 8) 400 | -10/Materials | Core integrity fell below 50% 433 | -10/Materials | Learned 2 Mines zone layouts 433 | -10/Materials | Lost 5 parts (1p2n2w) 491 | -10/Materials | Discovered new exit (range 15) 514 | -10/Materials | Core integrity fell below 20% 538 | -10/Materials | Destroyed by G-47 Trooper with Particle Gun Last Messages --------------- 00418_ Acquired 30 matter. 00419_ Acquired 36 matter. 00420_ Acquired 25 matter. 00433_ >> SKIM: Stored Mines zone layouts (x2). 00437_ Triggered Shock Trap. 00437_ The floor emits a surge of raw power. 00437_ System corrupted (+1). 00451_ Acquired Signal Interpreter. 00453_ Acquired Mining Laser. 00491_ EXIT=FOUND 00497_ >> SKIM: Stored Mines entrances (x2). 00500_ O-16 Technician sends out distress signal. 00501_ System corrupted: Energy discharge (-32). 00509_ Heat Sink melted. 00509_ G-34 Mercenary destroyed. 00515_ Flight Unit destroyed. 00522_ G-34 Mercenary destroyed. 00535_ R-06 Scavenger collects Aluminum Leg. 00538_ K-01 Serf collects debris. Map ----- +----------------------------------------------------+ | | | | | | | | | | | | | | | | | ???##############????????????????????????????????? | | ???# #????????????????????????????????? | | ???# " """ #????????????????????????????????? | | ???# T """ #????????????????????????????????? | | ??## " / """ #????????????????????????????????? | | # / #????????????????????????????????? | | ??########+##########????????????????????????????? | | ######## #????????????????????????????? | | #????????????????????????????? | | ######???????????????????????? | | #???????????????????????? | | #???????????????????????? | | ######### #???????????????????????? | | ????????# #???????????????????????? | | ????????# ########## #???????????????????????? | | ######### #????????# #???????????????????????? | | # #???????## ##?????###+###???????? ?? | | != """ # #???????# @####### ####### ?? | | ! "T" # ######### rg%[ ???? | | # # ![ [## g=*k T ?????? | | ! # # %% ## % ????????? | | # #% = ## ####### ###????????? | | #+####### +!= !!########??????# ##??????????? | | #???# # [ !!#???########### #???????????? | | ##### # ! #???# # #???????????? | | ########???? "T" /= #???????????? | | ####### #??????????? """ #%* #???????????? | | #?????# #???????????? # #???????##### | | ##?????# #????????????######### ##??????# | | #??##### #???????????????????# #??????# | | #? ## #???????????????????# #??????# | | #? ## #???????????????????# " #??????# | | # " ## #???????????????????# #??????# | | # """ ## #?#########???####### ######## | | + """ ## ### ##### ^ ### ##+## | | # """ # ### | | # "" # < | | #?""" # """ ### | | #?"" # ## ##### """ #?# ##+#+ | | #??" # ## "!"|" #???## """ ######### | | #??" + ##""!"|""#????# + ! ## """ | | #???? # ############### # ## "Y | +----------------------------------------------------+ Best States ------------- Heat Dissipation 25 Energy Generation 10 Energy Capacity 250 Matter Stores 300 Matter Capacity 300 Sight Range 16 Terrain Scan Density 10 Utility Shielding 33 Evasion (%) 62 Item Schematics ----------------- None Robot Schematics ------------------ None Fabricated ------------ Nothing Repaired ---------- Nothing Studied --------- None Alien Tech Used ----------------- None Achievements -------------- None Challenges ------------ None Game ------ Seed PietyTerrorBiocell Manual? 0 Play Time 00:10:28 Cumulative 362.4 hours Start 2026.07.27 @ 14:31:05 End 2026.07.27 @ 14:40:02 Sessions 1 Manual Loads 0 Difficulty Rogue Special Mode None Game No. 208 Rogue 134 Adventurer 74 Explorer 0 Win Type - Total 17 Types 14/0/0/3/0/0/0/0/0/0 Lore% 74 Gallery% 68 Achievement% 53 Wizard Run 0 Options --------- Layout 2 ASCII 0 Keyboard 0 Movement Mouse Keybinds 0 Fullscreen 1 Font 32/SmallcapsGlow Map View 50x44 Zoom Use 0% Tactical HUD 1 Map Filters NONE Filters NONE Steam 1 RUN: 170f8933-26c2-4521-8c74-bebd4e744032